Cogmind - Beta 13 @@@ ROGUE MODE // 2024.05.23 @ 11:51:27 Player: Barbarossa Result: Smashed by cave-in Performance ------------- Evolutions (0) 0 Regions Visited (2) 400 Robots Destroyed (15) 75 Value Destroyed (397) 397 Prototype IDs (10) 200 Alien Tech Used (0) 0 Bonus (0) 0 TOTAL SCORE: 1072 Bonus ------- None Cogmind --------- Core Integrity 0/250 Matter 204/300 Energy 200/200 System Corruption 4% Temperature Cool (0) Movement Rolling (135) Ox3 Location -10/Subcaves Parts ------- > --- POWER (1) -------- Subdweller Power Source > --- PROPULSION (2) --- Wheel Compact Wheel > --- UTILITY (2) ------ Huge Storage Unit > --- WEAPON (2) ------- Small Laser > --- INVENTORY (25) --- Ion Engine Light Ion Engine Subdweller Power Source Light Treads Light Treads Spiked Treads Subdweller Monowheel Heat Sink High-capacity Battery (250) Gun Armor Hacking Suite Small Laser Small Laser Makeshift Laser Assault Rifle Light Assault Rifle Light Assault Rifle Battle Rifle Shrapnel Trap Piercing Trap Peak State ------------ > --- POWER ------------ Subdweller Power Source > --- PROPULSION ------- Wheel Wheel > --- UTILITY ---------- Huge Storage Unit > --- WEAPON ----------- Subdweller Beam Cannon Slug Cannon > --- INVENTORY -------- Ion Engine Light Ion Engine Subdweller Power Source Subdweller Power Source Light Treads Light Treads Spiked Treads Wheel Compact Wheel Subdweller Monowheel Heat Sink High-capacity Battery Gun Armor Hacking Suite Small Laser Small Laser Small Laser Subdweller Laser Makeshift Laser Assault Rifle Light Assault Rifle Light Assault Rifle Battle Rifle Shrapnel Trap Piercing Trap [Rating: 15] Favorites ----------- Power Light Ion Engine Engine Light Ion Engine Propulsion Wheel Treads Light Treads Leg Aluminum Leg Wheel Wheel Utility Huge Storage Unit Storage Huge Storage Unit Weapon Small Laser Energy Gun Small Laser Energy Cannon Subdweller Beam Cannon Ballistic Gun Assault Rifle Ballistic Cannon Slug Cannon Build | -11 -10 -10 ------- Run | Yrd Mat Sub Slots Evolved . | . . . Power . | . . . Propulsion . | . . . Utility . | . . . Weapon . | . . . Parts Attached 20 | . 5 15 Power 3 | . 1 2 Engine 3 | . 1 2 Core . | . . . Reactor . | . . . Propulsion 9 | . 3 6 Treads 2 | . . 2 Leg . | . . . Wheel 7 | . 3 4 Hover . | . . . Flight . | . . . Utility 1 | . 1 . Device . | . . . Storage 1 | . 1 . Processor . | . . . Hackware . | . . . Protection . | . . . Artifact . | . . . Weapon 7 | . . 7 Energy Gun 2 | . . 2 Energy Cannon 2 | . . 2 Ballistic Gun 1 | . . 1 Ballistic Cannon 2 | . . 2 Launcher . | . . . Special Weapon . | . . . Impact Weapon . | . . . Slashing Weapon . | . . . Piercing Weapon . | . . . Special Melee Weapon . | . . . Unidentified Prototypes . | . . . Parts Lost 9 | . 2 7 Power 2 | . 1 1 Propulsion 3 | . 1 2 Utility . | . . . Weapon 4 | . . 4 Highest Loss Streak 4 | . 2 4 To Critical Strikes . | . . . Average Slot Usage (%) 83 | . 82 83 Engine 13 | . 12 14 Wheel 26 | . 25 27 Storage 14 | . 14 14 Energy Gun 11 | . 14 11 Energy Cannon 4 | . . 6 Ballistic Gun 7 | . 14 5 Ballistic Cannon 3 | . . 3 Naked Turns . | . . . Heaviest Build 100 | 11 86 100 Greatest Support 26 | 20 26 26 Greatest Overweight (x) 5 | . 5 4 Average Overweight (x) 3 | . 2 3 Largest Inventory Capacity 25 | . 25 25 Average Capacity 24 | . 23 25 Most Carried 25 | . 14 25 Average Carried 16 | . 6 18 Final Capacity 25 | 8 25 25 Final Carried 20 | 6 14 20 Class Distribution -------------------- 100% | Mutant Dominant Class ---------------- Mutant | -10/Materials Mutant | -10/Subcaves Resources | -11 -10 -10 ----------- Run | Yrd Mat Sub Matter Collected 527 | 200 133 194 Remotely . | . . . Salvage Created 580 | . 244 336 Parts 30 | . 17 13 Haulers Intercepted 1 | . 1 . Recyclers Shooed 1 | . 1 . Parts Field Recycled . | . . . Retrieved Matter . | . . . Parts Self-Destructed 14 | . . 14 Prevented . | . . . Kills | -11 -10 -10 ------- Run | Yrd Mat Sub Combat Hostiles Destroyed 12 | . 4 8 Guns 6 | . 4 2 Cannons 6 | . . 6 Classes Destroyed 7 | . 4 3 Worker 1 | . 1 . Hauler 1 | . 1 . Operator 1 | . 1 . Swarmer 3 | . . 3 Grunt 5 | . 4 1 Sentry 1 | . . 1 Subdweller 3 | . . 3 Best Kill Streak 4 | . 4 3 Combat Bots Only 3 | . 3 3 Max Kills in Single Turn 2 | . 1 2 Gunslinging . | . . . Exploded . | . . . Melee . | . . . Uniques/NPCs Destroyed . | . . . Combat | -11 -10 -10 -------- Run | Yrd Mat Sub Hostile Shots Fired 120 | . 32 88 Missed 31 | . 6 25 Damage Taken 1350 | . 317 1033 Core 314 | . 99 215 Absorbed by Shields . | . . . Core Remaining (%) 100 | 100 . . Volleys Fired 89 | . 31 58 Largest 2 | . 2 2 Hottest 128 | . 60 128 Shots Fired 155 | . 60 95 Gun 101 | . 60 41 Cannon 54 | . . 54 Launcher . | . . . Special . | . . . Kinetic 66 | . 31 35 Thermal 89 | . 29 60 Explosive . | . . . Electromagnetic . | . . . Robot Hit Streak 9 | . 5 9 Robot Miss Streak 6 | . 6 4 Penetration Max . | . . . Secondary Targets . | . . . Shots Hit Robots 66 | . 32 34 Core Hits 27 | . 15 12 Critical Kills 3 | . . 3 Critical Parts Destroyed . | . . . Critical Strikes 3 | . . 3 Meltdown 2 | . . 2 Destroy 1 | . . 1 Melee Attacks . | . . . Impact . | . . . Slashing . | . . . Piercing . | . . . Sneak Attacks . | . . . Combat Hostiles . | . . . Follow-up Attacks . | . . . Damage Inflicted 1173 | . 444 729 Guns 560 | . 444 116 Cannons 613 | . . 613 Explosions . | . . . Melee . | . . . Ramming . | . . . Kinetic 580 | . 243 337 Thermal 593 | . 201 392 Explosive . | . . . Electromagnetic . | . . . Impact . | . . . Slashing . | . . . Piercing . | . . . Highest Corruption . | . . . Average Corruption . | . . . Corruption Purged . | . . . Corruption Blocked . | . . . Overload Shots . | . . . Overflow Damage . | . . . Projectiles . | . . . Explosions . | . . . Melee . | . . . Knockbacks 4 | . . 4 Impact . | . . . Kinetic 4 | . . 4 Secondary . | . . . Self-Inflicted Damage . | . . . Shots . | . . . Rammed . | . . . Targets Rammed . | . . . Kicked . | . . . Crushed . | . . . Highest Temperature 269 | . 140 269 Average Temperature 86 | . 93 74 Received Heat Transfer 675 | . 189 486 Siege Activations . | . . . Robots Corrupted . | . . . Combat Hostiles . | . . . Parts Fried . | . . . Impact Corruptions . | . . . Robots Melted 2 | . . 2 Combat Hostiles 2 | . . 2 Parts Melted 6 | . . 6 Heat Transferred 1032 | . 450 582 Parts Sabotaged . | . . . Parts Stolen . | . . . Parts Stripped . | . . . Power Chain Reactions . | . . . Alert | -11 -10 -10 ------- Run | Yrd Mat Sub Peak Influence 115 | . 115 . Initial . | . . . Average 48 | . 48 . Maximum Alert Level . | . . . Low Security (%) 100 | . 100 . Level 1 . | . . . Level 2 . | . . . Level 3 . | . . . Level 4 . | . . . Level 5 . | . . . High Security . | . . . Max Security . | . . . Squads Dispatched 1 | . 1 . Investigation . | . . . Extermination . | . . . Reinforcement 1 | . 1 . Assault . | . . . Garrison . | . . . Intercept . | . . . Searches Triggered . | . . . Construction Impeded . | . . . Haulers Reinforced . | . . . Active Scanning Responses . | . . . Cargo Convoy Interrupts . | . . . Stealth | -11 -10 -10 --------- Run | Yrd Mat Sub Distress Signals 1 | . 1 . Communications Jammed . | . . . Distress Signals . | . . . Times Spotted 27 | . 6 21 Peak Tracking Total 6 | . 3 6 Tactical Retreats 3 | . . 3 Traps | -11 -10 -10 ------- Run | Yrd Mat Sub Traps Triggered . | . . . Indirectly . | . . . Trap Hack Attempts . | . . . Triggered . | . . . Disarmed . | . . . Reprogrammed . | . . . Reused . | . . . Traps Extracted . | . . . Installed . | . . . Triggered . | . . . Most Traps Carried 2 | . . 2 Machines | -11 -10 -10 ---------- Run | Yrd Mat Sub Machines Disabled 2 | . . 2 Max in Single Turn 1 | . . 1 Machines Repaired . | . . . Machines Dismantled . | . . . Machines Sabotaged . | . . . Overloaded Fab Kills . | . . . Hacking | -11 -10 -10 --------- Run | Yrd Mat Sub Machines Accessed 3 | . 1 2 Terminals 1 | . 1 . Fabricators . | . . . Repair Stations . | . . . Recycling Units . | . . . Scanalyzers . | . . . Garrison Access . | . . . Total Hacks 17 | . 5 12 Successful 14 | . 2 12 Failed 3 | . 3 . Catastrophic 1 | . 1 . Database Lockouts . | . . . Manual 8 | . 5 3 Terminals 5 | . 5 . Fabricators . | . . . Repair Stations . | . . . Recycling Units . | . . . Scanalyzers . | . . . Garrison Access . | . . . Terminal Hacks 13 | . 1 12 Record 11 | . . 11 Unreport Threat 1 | . 1 . Derelict Proto ID Bank 1 | . . 1 Fabricator Hacks . | . . . Repair Station Hacks . | . . . Recycling Unit Hacks . | . . . Scanalyzer . | . . . Garrison Access Hacks . | . . . Unauthorized Hacks 1 | . 1 . Terminals 1 | . 1 . Botnet 1 | . 1 . Fabricators . | . . . Repair Stations . | . . . Recycling Units . | . . . Scanalyzers . | . . . Garrison Access . | . . . Data Cores Recovered . | . . . Used . | . . . Hacking Detections 1 | . 1 . Full Trace Events . | . . . Feedback Events . | . . . Feedback Blocked . | . . . Robot Schematics Acquired . | . . . Robots Built . | . . . Authchips . | . . . Time . | . . . Total Robot Build Rating . | . . . Part Schematics Acquired . | . . . Parts Built . | . . . Authchips . | . . . Time . | . . . Total Part Build Rating . | . . . Parts Repaired . | . . . Time . | . . . Parts Recycled . | . . . Recycled Matter . | . . . Retrieved Matter . | . . . Retrieved Components . | . . . Parts Scanalyzed . | . . . Part Schematics Acquired . | . . . Parts Damaged . | . . . Bothacking | -11 -10 -10 ------------ Run | Yrd Mat Sub Used RIF Installer . | . . . Robots Hacked . | . . . Non-combat . | . . . Combat . | . . . Robot Hacks Applied . | . . . Relay Couplers Released . | . . . Fabnet Peak Effective % . | . . . Robots Rewired . | . . . Allies Hacked . | . . . Hacks Repelled . | . . . Allies | -11 -10 -10 -------- Run | Yrd Mat Sub Total Allies . | . . . Largest Group . | . . . Highest-Rated Group . | . . . Highest-Rated Ally . | . . . Total Orders . | . . . Ally Attacks . | . . . Total Damage . | . . . Kills . | . . . Allies Corrupted . | . . . Allies Melted . | . . . Intel | -11 -10 -10 ------- Run | Yrd Mat Sub Robot Analysis Total . | . . . Derelict Logs Recovered 2 | . . 2 Drone Launches . | . . . Drone Recoveries . | . . . Exploration | -11 -10 -10 ------------- Run | Yrd Mat Sub Turns Passed 1991 | . 388 1603 Spaces Moved 1231 | 1 205 1025 Core . | . . . Treads . | . . . Legs 19 | 1 18 . Wheels 1212 | . 187 1025 Hover . | . . . Flight . | . . . Fastest Speed 120 | 120 120 135 Average Speed 135 | 120 134 136 Slowest Speed 175 | 120 175 140 Overloaded Moves . | . . . Propulsion Burnouts . | . . . Robots Hopped . | . . . Cave-ins Triggered 1 | . . 1 Exploration Rate (%) 28 | 2 29 55 Regions Visited 2 Branch Regions 1 Pre-discovered Areas 2 | . . 2 Known Exits Taken . | . . . Unknown Exits Taken 2 | 1 1 . Scrap Searched 3 | . . 3 Spaces Dug . | . . . Terrain Destroyed 10 | . . 10 Melee . | . . . Projectile 10 | . . 10 AOE . | . . . Terrain Rammed . | . . . Walls Destroyed . | . . . Machines Disabled . | . . . Actions | -11 -10 -10 --------- Run | Yrd Mat Sub Total 1397 | . 258 1139 Wait 21 | . 3 18 Move 1229 | . 204 1025 Hop . | . . . Pick Up 29 | . 12 17 Fast Attach 1 | . 1 . Attach 9 | . 2 7 Detach . | . . . Swap 10 | . 2 8 Drop 9 | . 3 6 Fire 89 | . 31 58 Melee . | . . . Ram . | . . . Kick . | . . . Crush . | . . . Escape Stasis . | . . . Rewire . | . . . Trap . | . . . Miscellaneous . | . . . Route ------- -11/Scrapyard -10/Materials (discovered 2 exits: [*Min] / *Sub) -10/Subcaves (discovered 3 exits: Mat x2 / *Rec) History --------- Turn | Location | Event 1 | -11/Scrapyard | Discovered new exit (range 0) 1 | -11/Scrapyard | Entered Materials 227 | -10/Materials | Discovered new exit (range 12) 314 | -10/Materials | Build established: Mutant 382 | -10/Materials | Discovered new exit (range 5) 389 | -10/Materials | Entered Subcaves 402 | -10/Subcaves | Learned location of Recycling (-7) 540 | -10/Subcaves | A swath of the cavern ceiling suddenly collapsed 982 | -10/Subcaves | Visited 4L-MR0's lab 1004 | -10/Subcaves | Found Gun Armor 1163 | -10/Subcaves | Shifting Twisted Machinery released Mak. Leg 1167 | -10/Subcaves | Shifting Twisted Machinery released Battle Cannon 1283 | -10/Subcaves | Learned Materials stockpile data 1337 | -10/Subcaves | Learned location of Zion (-6) 1337 | -10/Subcaves | Met a Zionite searching for "candidates" 1363 | -10/Subcaves | Visited Clippyterm 1367 | -10/Subcaves | Identified exit to Materials 1367 | -10/Subcaves | Identified exit to Recycling 1367 | -10/Subcaves | Learned Factory emergency access door positions 1414 | -10/Subcaves | Disturbed a concealed Subdweller 1488 | -10/Subcaves | Core integrity fell below 50% 1750 | -10/Subcaves | Shifting Twisted Machinery released Slug Cannon 1751 | -10/Subcaves | Shifting Twisted Machinery released Piercing Trap 1963 | -10/Subcaves | Core integrity fell below 20% 1993 | -10/Subcaves | Crushed by falling debris 1993 | -10/Subcaves | Smashed by cave-in Last Messages --------------- 01962_ S-10 Pest springs to life. 01963_ Machine disabled. 01965_ S-10 Pest destroyed. 01970_ Sub. Laser destroyed. 01972_ S-10 Pest destroyed. 01972_ Slug penetrates S-10 Pest. 01972_ S-10 Pest destroyed. 01979_ Wheel destroyed. 01980_ Flight Unit fries itself beyond repair. 01980_ Lgt. Ion Engine fries itself beyond repair. 01981_ Wheel destroyed. 01981_ Slug penetrates Earth. 01982_ Flight Unit fries itself beyond repair. 01984_ S-10 Pest destroyed. 01986_ Flight Unit fries itself beyond repair. 01993_ The unstable cave ceiling collapses. 01993_ Crushed by falling debris. 01993_ Slug Cannon destroyed. 01993_ System corrupted by crushing effect (+4). Map ----- +----------------------------------------------------+ | # ####" ## ###???????????? | | ## ##"# """"] ##??????????? | | ?# " "" """##""## ## ##?????????? | | ?# ## "# # ######## #?????????? | | ?########"## #??????### #?????????? | | ????????######## # " #???????## #?????????? | | ???????????????##### " #????????# #?###?????? | | ??????????????????? " #????????## ## ##????? | | ??????????????????? " ##??????#### #????? | | ???????????????????# #? #??# #????? | | ???????????????????? ??## #####????? | | ???????????????????? " ???## ##????????? | | ???????????????????? " ???## #?????????? | | ??????????????????""""" ???# ##????????? | | ??????????????????? " ??## ####?????? | | ?????????????????? " #??# #?????? | | ?????????????????? " #### #?????? | | ????????????????????# " ## ## #?????? | | ????????????????????# ## ##?????? | | ????????????????????# ## #### #??????? | | ????????????????????# ## #######??????? | | ????????????????????# " ### ####????????? | | ????????????????????##" ### #????????? | | ?????????????????????#" % #????????? | | ?????????????????????# %* ##????????? | | ?????????????????????#=%%@#### #?????????? | | ????????????????????#; % ##??## ## #?????????? | | ??????????????????#" ????# ## #?????????? | | ????????????????##### ##????????? | | ???????????????? #######???## #????????? | | ??????????????? ?# #??## #????????? | | ??????????????#?## #??# ## #????????? | | ???????????????## % #??# ## #????? | | ??????????????## #### #????? | | ?????????????#" % ] #????? | | ?????????????## ### ##????? | | ??????????????##??#" % ####### #?????? | | ??????????????????######?????# #?????? | | ?????????????????????????????## #### ###?????? | | ??????????????????????????????#####??? #??????? | | ??????????????????????????????????????# ##??????? | | ??????????????????????????????????????? #???????? | | ??????????????????????????????????????? #???????? | | ?????????????????????????????????????????????????? | | ?????????????????????????????????????????????????? | +----------------------------------------------------+ Best States ------------- Heat Dissipation 25 Energy Generation 15 Energy Capacity 200 Matter Stores 300 Matter Capacity 300 Sight Range 16 Terrain Scan Density 10 Evasion (%) 55 Recoil Reduction 2 Item Schematics ----------------- None Robot Schematics ------------------ None Fabricated ------------ Nothing Alien Tech Used ----------------- None Achievements -------------- None Challenges ------------ None Game ------ Seed IonicMakeshiftBox Manual? 0 Play Time 00:18:09 Cumulative 185.5 hours Start 2024.05.23 @ 11:37:09 End 2024.05.23 @ 11:51:27 Sessions 1 Manual Loads 0 Difficulty Rogue Special Mode None Game No. 343 Rogue 343 Adventurer 0 Explorer 0 Win Type - Total 0 Types 0/0/0/0/0/0/0/0/0 Lore% 43 Gallery% 55 Achievement% 39 Wizard Run 0 Options --------- Layout 1 ASCII 0 Keyboard 0 Movement Mouse Keybinds 0 Fullscreen 1 Font 24/Smallcaps Map View 50x40 Zoom Use 0% Tactical HUD 1 Map Filters NONE Filters NONE Steam 1 RUN: 8fcf9654-a2d2-4b3e-b4bd-dd4d3e41390f